fUST/lending_fUST_20251012
["ID","MTS","AMOUNT","RATE_DAILY","PERIOD"]
[390973585,1760250100920,332.5,0.00021788,2]
[390973587,1760250114611,997.47,0.00021788,2]
[390973644,1760250525023,250.0,0.00020548,30]
[390973670,1760250632214,-250.0,0.00021918,30]
[390973671,1760250632225,-189.56636516,0.00022239,2]
[390973672,1760250632234,-389.0927391,0.00022239,2]
[390973673,1760250632275,-810.9072609,0.00022239,2]
[390973674,1760250632284,-666.0,0.00022567,2]
[390973675,1760250632293,-651.31272186,0.00022616,2]
[390973692,1760250638037,-348.68727814,0.00022616,2]
[390973693,1760250638048,-186.020172,0.00022702,2]
[390973694,1760250638058,-250.0,0.00022715,2]
[390973695,1760250638068,-218.00131993,0.00022839,2]
[390973696,1760250638079,-1368.99125704,0.00023061,2]
[390973697,1760250638089,-1200.0,0.00023335,2]
[390973698,1760250638099,-577.88331322,0.00023438,2]
[390973699,1760250638113,-622.11668678,0.00023438,2]
[390973700,1760250638124,-127.88331322,0.00023439,2]
[390973701,1760250638136,-118.55296149,0.00023439,2]
[390973702,1760250638145,-1368.99125704,0.00023559,2]
[390973703,1760250638155,-300.0,0.00023619,2]
[390973704,1760250638165,-2033.03056401,0.00023683,2]
[390973705,1760250638175,-1368.99125704,0.00023751,2]
[390973706,1760250638184,-218.46037365,0.000238,2]
[390973707,1760250638194,-418.0,0.00023885,2]
[390973708,1760250638204,-313.33799957,0.00023885,2]
[390973709,1760250638214,-500.0,0.00023885,2]
[390973710,1760250638224,-506.29137541,0.00023885,2]
[390973711,1760250638233,-1000.0,0.00023886,2]
[390973712,1760250638242,-151.34351314,0.00023886,2]
[390973713,1760250638252,-1000.0,0.00023886,2]
[390973714,1760250638262,-1000.0,0.00023886,2]
[390973715,1760250638273,-1000.0,0.00023886,2]
[390973716,1760250638283,-151.0,0.00023886,2]
[390973717,1760250638292,-163.1743703,0.00023886,2]
[390973718,1760250638302,-1000.0,0.00023886,2]
[390973719,1760250638311,-1000.0,0.00023886,2]
[390973720,1760250638322,-18603.8837,0.00023886,2]
[390973721,1760250638332,-151.0,0.00023886,2]
[390973722,1760250638342,-211.61315389,0.00023886,2]
[390973723,1760250638353,-1000.0,0.00023886,2]
[390973724,1760250638362,-1000.0,0.00023886,2]
[390973725,1760250638371,-1000.0,0.00023886,2]
[390973726,1760250638380,-321.96213366,0.00023886,2]
[390973727,1760250638389,-151.0,0.00023886,2]
[390973728,1760250638398,-151.0,0.00023886,2]
[390973729,1760250638407,-190.77124641,0.00023886,2]
[390973730,1760250638416,-151.0,0.00023886,2]
[390973731,1760250638426,-500.0,0.00023886,2]
[390973732,1760250638436,-500.0,0.00023886,2]
[390973733,1760250638445,-151.0,0.00023886,2]
[390973734,1760250638455,-500.0,0.00023886,2]
[390973735,1760250638464,-500.0,0.00023886,2]
[390973736,1760250638474,-155.3830729,0.00023886,2]
[390973737,1760250638483,-151.0,0.00023886,2]
[390973738,1760250638493,-1000.0,0.00023886,2]
[390973739,1760250638502,-500.0,0.00023886,2]
[390973740,1760250638512,-483.74602766,0.00023886,2]
[390973741,1760250638522,-151.0,0.00023886,2]
[390973742,1760250638531,-1000.0,0.00023886,2]
[390973743,1760250638541,-500.0,0.00023886,2]
[390973744,1760250638550,-151.0,0.00023886,2]
[390973745,1760250638560,-1000.0,0.00023886,2]
[390973746,1760250638569,-500.0,0.00023886,2]
[390973747,1760250638579,-153.26398906,0.00023886,2]
[390973748,1760250638589,-1000.0,0.00023886,2]
[390973749,1760250638598,-500.0,0.00023886,2]
[390973750,1760250638608,-1000.0,0.00023886,2]
[390973751,1760250638618,-500.0,0.00023886,2]
[390973752,1760250638628,-1000.0,0.00023886,2]
[390973753,1760250638637,-500.0,0.00023886,2]
[390973754,1760250638647,-1000.0,0.00023886,2]
[390973755,1760250638657,-500.0,0.00023886,2]
[390973756,1760250638667,-1000.0,0.00023886,2]
[390973757,1760250638677,-500.0,0.00023886,2]
[390973758,1760250638687,-1000.0,0.00023886,2]
[390973759,1760250638697,-500.0,0.00023886,2]
[390973760,1760250638706,-1000.0,0.00023886,2]
[390973761,1760250638716,-250.0,0.00023886,2]
[390973762,1760250638725,-521.56339739,0.00023886,2]
[390973763,1760250638735,-557.39742113,0.00023886,2]
[390973764,1760250638744,-250.0,0.00023886,2]
[390973765,1760250638753,-250.0,0.00023886,2]
[390973766,1760250638763,-252.06122447,0.00023886,2]
[390973767,1760250638772,-162.85878165,0.00023886,2]
[390973768,1760250638782,-500.0,0.00023886,2]
[390973769,1760250638791,-500.0,0.00023886,2]
[390973770,1760250638801,-500.0,0.00023886,2]
[390973771,1760250638812,-500.0,0.00023886,2]
[390973772,1760250638822,-614.96583284,0.00023886,2]
[390973773,1760250638831,-500.0,0.00023899,2]
[390973774,1760250638841,-289.31313432,0.00023899,2]
[390973775,1760250638851,-500.0,0.00023899,2]
[390973776,1760250638861,-622.1386652,0.00023899,2]
[390973777,1760250638871,-258.71931985,0.00023899,2]
[390973778,1760250638880,-500.0,0.00023899,2]
[390973779,1760250638893,-500.0,0.00023899,2]
[390973780,1760250638903,-370000.0,0.000239,2]
[390973781,1760250638912,-2705.53708154,0.000239,2]
[390973782,1760250638923,-571.11934018,0.00023973,2]
[390973783,1760250638934,-257.28879411,0.00023973,2]
[390973784,1760250638944,-500.0,0.00023973,2]
[390973785,1760250638954,-255.85980242,0.00023973,2]
[390973786,1760250638965,-500.0,0.00023973,2]
[390973787,1760250638976,-500.0,0.00023973,2]
[390973788,1760250638986,-500.0,0.00023973,2]
[390973789,1760250638995,-500.0,0.00023973,2]
[390973790,1760250639005,-1000.0,0.00023993,5]
[390973791,1760250639015,-500.0,0.00023999,2]
[390973792,1760250639024,-500.0,0.00023999,2]
[390973793,1760250639034,-585.84487999,0.00023999,2]
[390973794,1760250639044,-166.58183923,0.00023999,2]
[390973795,1760250639054,-500.0,0.00023999,2]
[390973796,1760250639064,-500.0,0.00023999,2]
[390973797,1760250639076,-500.0,0.00023999,2]
[390973798,1760250639087,-500.0,0.00023999,2]
[390973799,1760250639096,-500.0,0.00023999,2]
[390973800,1760250639106,-500.0,0.00023999,2]
[390973801,1760250639116,-500.0,0.00023999,2]
[390973802,1760250639127,-500.0,0.00023999,2]
[390973803,1760250639137,-500.0,0.00023999,2]
[390973804,1760250639147,-500.0,0.00023999,2]
[390973805,1760250639157,-500.0,0.00023999,2]
[390973806,1760250639167,-500.0,0.00023999,2]
[390973807,1760250639177,-500.0,0.00023999,2]
[390973808,1760250639187,-500.0,0.00023999,2]
[390973809,1760250639197,-500.0,0.00023999,2]
[390973810,1760250639207,-500.0,0.00023999,2]
[390973811,1760250639217,-500.0,0.00023999,2]
[390973812,1760250639227,-500.0,0.00023999,2]
[390973813,1760250639236,-500.0,0.00023999,2]
[390973814,1760250639246,-608.41255461,0.00023999,2]
[390973815,1760250639256,-24511.82461427,0.00024,2]
[390973816,1760250639267,-25000.0,0.00024,2]
[390973817,1760250639276,-24999.99,0.00024,2]
[390973818,1760250639286,-25000.0,0.00024,2]
[390973819,1760250639296,-274.87122948,0.00024039,2]
[390973820,1760250639305,-1368.99125704,0.00024046,2]
[390973821,1760250639315,-2705.53708153,0.00024125,2]
[390973822,1760250639327,-264265.32444901,0.00024142,2]
[390973823,1760250639337,-25000.0,0.0002415,2]
[390973824,1760250639347,-24999.98,0.0002415,2]
[390973825,1760250639356,-1336.55515468,0.00024152,2]
[390973826,1760250639366,-1368.99125704,0.00024156,2]
[390973827,1760250639375,-500.0,0.00024173,2]
[390973828,1760250639384,-501.9676903,0.00024173,2]
[390973829,1760250639393,-500.0,0.00024173,2]
[390973830,1760250639402,-500.0,0.00024173,2]
[390973831,1760250639412,-500.0,0.00024173,2]
[390973832,1760250639421,-500.0,0.00024173,2]
[390973833,1760250639431,-503.78777992,0.00024173,2]
[390973834,1760250639440,-500.0,0.00024173,2]
[390973835,1760250639449,-500.86341301,0.00024173,2]
[390973836,1760250639458,-170.595212,0.00024173,2]
[390973837,1760250639468,-4788.82969709,0.000243,2]
[390973838,1760250639481,-11734.54,0.000243,2]
[390973839,1760250639491,-8476.63030291,0.000243,2]
[390973840,1760250639500,-391.9198272,0.00024329,2]
[390973841,1760250639509,-391.9198272,0.00024329,2]
[390973842,1760250639519,-391.9198272,0.00024329,2]
[390973843,1760250639528,-391.9198272,0.00024329,2]
[390973844,1760250639537,-391.9198272,0.00024329,2]
[390973845,1760250639546,-895.1322472,0.00024329,2]
[390973846,1760250639556,-2705.53708153,0.0002435,2]
[390973847,1760250639566,-1200.0,0.00024431,2]
[390973848,1760250639576,-19292.2273969,0.00024434,2]
[390973849,1760250639586,-1368.99125708,0.00024446,2]
[390973852,1760250639724,-25000.0,0.0002445,2]
[390973853,1760250639734,-1000.0,0.00024521,2]
[390973854,1760250639743,-1000.0,0.00024521,2]
[390973855,1760250639753,-500.0,0.00024521,2]
[390973856,1760250639762,-1000.0,0.00024521,2]
[390973857,1760250639771,-1000.0,0.00024521,2]
[390973858,1760250639780,-2705.53708153,0.00024575,2]
[390973859,1760250639790,-11157.38,0.000246,2]
[390973860,1760250639799,-303.30618425,0.00024639,2]
[390973861,1760250639807,-1500.0,0.00024657,10]
[390973862,1760250639817,-20300.25595811,0.000247,3]
[390973863,1760250639828,-218.46037365,0.000247,2]
[390973864,1760250639837,-1472.99197561,0.000247,2]
[390973867,1760250639846,-300.0,0.000247,12]
[390973869,1760250639865,-300.0,0.000247,12]
[390973871,1760250639875,-1000.0,0.00024721,2]
[390973873,1760250639885,-1000.0,0.00024721,2]
[390973875,1760250639898,-1001.32292699,0.00024721,2]
[390973877,1760250639907,-1000.0,0.00024721,2]
[390973879,1760250639917,-502.51841808,0.00024721,2]
[390973882,1760250639927,-1006.85560792,0.00024721,2]
[390973884,1760250639937,-5888.0,0.00024762,2]
[390973886,1760250639946,-453.1685888,0.00024799,2]
[390973888,1760250639956,-200.0,0.00024799,2]
[390973890,1760250639967,-160.37901532,0.00024799,2]
[390973892,1760250639976,-200.0,0.00024799,2]
[390973894,1760250639986,-200.0,0.00024799,2]
[390973896,1760250639995,-2000.0,0.00024799,30]
[390973898,1760250640005,-2000.0,0.00024799,30]
[390973900,1760250640015,-2000.0,0.00024799,30]
[390973902,1760250640025,-1114.585,0.00024799,30]
[390973904,1760250640035,-23321.47687073,0.000248,2]
[390973922,1760250640199,-2122.21,0.0002389,10]
[390973924,1760250640209,-23046.26904338,0.000248,2]
[390974061,1760250646265,-2701.12803373,0.000248,2]
[390974063,1760250646276,-1896.01578638,0.000248,2]
[390974064,1760250646287,-5312.57475037,0.000248,2]
[390974065,1760250646298,-11028.09844254,0.000248,2]
[390974077,1760250702744,939.51978812,0.0003025,60]
[390974088,1760251002999,2439.0,0.00021788,2]
[390974115,1760251201253,1000.0,0.00030244,60]
[390974128,1760251498916,2000.0,0.00030244,60]
[390974130,1760251584866,1000.0,0.00030244,60]
[390974135,1760251703526,638.284428,0.00013699,2]
[390974136,1760251703719,489.64601975,0.00020187,2]
[390974137,1760251703740,148.63840825,0.00020187,2]
[390974156,1760251832378,-1369.81585056,0.00022157,2]
[390974157,1760251832391,-1017.88493254,0.00022157,2]
[390974161,1760251838333,-2612.2992169,0.00022157,2]
[390974162,1760251838344,-333.54633335,0.00022381,2]
[390974163,1760251838358,-159.590633,0.00022864,2]
[390974164,1760251838370,-177.94153585,0.00022864,2]
[390974165,1760251838382,-511.63210451,0.0002299,2]
[390974166,1760251838394,-204.63276623,0.00023464,2]
[390974167,1760251838406,-589.0,0.00023771,2]
[390974168,1760251838417,-300.0,0.00023772,2]
[390974169,1760251838430,-312.19471702,0.00023773,2]
[390974170,1760251838441,-500.0,0.00023773,2]
[390974171,1760251838452,-500.0,0.00023773,2]
[390974172,1760251838463,-500.0,0.00023773,2]
[390974173,1760251838473,-500.0,0.00023773,2]
[390974174,1760251838484,-1200.0,0.00023784,2]
[390974175,1760251838495,-18525.1716049,0.00023785,2]
[390974176,1760251838505,-1768.5,0.00023789,10]
[390974177,1760251838515,-368.77527425,0.00023798,2]
[390974178,1760251838526,-209.53712072,0.00023798,2]
[390974179,1760251838536,-500.0,0.00023798,2]
[390974180,1760251838546,-500.0,0.00023798,2]
[390974181,1760251838558,-370000.0,0.00023799,2]
[390974182,1760251838569,-500.0,0.00023885,2]
[390974183,1760251838580,-500.0,0.00023885,2]
[390974184,1760251838590,-585.84487999,0.00023885,2]
[390974185,1760251838601,-166.58183923,0.00023885,2]
[390974186,1760251838613,-500.0,0.00023885,2]
[390974187,1760251838623,-500.0,0.00023885,2]
[390974188,1760251838634,-500.0,0.00023885,2]
[390974189,1760251838645,-500.0,0.00023885,2]
[390974190,1760251838655,-500.0,0.00023885,2]
[390974191,1760251838666,-500.0,0.00023885,2]
[390974192,1760251838677,-500.0,0.00023885,2]
[390974193,1760251838688,-500.0,0.00023885,2]
[390974194,1760251838698,-500.0,0.00023885,2]
[390974195,1760251838708,-500.0,0.00023885,2]
[390974196,1760251838719,-500.0,0.00023885,2]
[390974197,1760251838729,-500.0,0.00023885,2]
[390974198,1760251838740,-500.0,0.00023885,2]
[390974199,1760251838750,-500.0,0.00023885,2]
[390974200,1760251838762,-500.0,0.00023885,2]
[390974201,1760251838773,-500.0,0.00023885,2]
[390974202,1760251838784,-500.0,0.00023885,2]
[390974203,1760251838796,-500.0,0.00023885,2]
[390974204,1760251838807,-500.0,0.00023885,2]
[390974205,1760251838818,-608.41255461,0.00023885,2]
[390974206,1760251838830,-1623.32224892,0.000239,2]
[390974207,1760251839016,-1000.0,0.00023945,5]
[390974208,1760251839035,-501.47230702,0.00023973,2]
[390974209,1760251839045,-257.28879411,0.00023973,2]
[390974210,1760251839055,-500.0,0.00023973,2]
[390974211,1760251839064,-4788.82,0.00024,2]
[390974212,1760251839074,-25000.0,0.00024,2]
[390974213,1760251839084,-24999.99,0.00024,2]
[390974214,1760251839094,-24999.98,0.00024,2]
[390974215,1760251839105,-25000.0,0.00024,2]
[390974216,1760251839115,-231.3239966,0.00024064,2]
[390974217,1760251839124,-1623.32224892,0.00024125,2]
[390974218,1760251839134,-24999.99,0.0002415,2]
[390974219,1760251839144,-24511.85,0.0002415,2]
[390974220,1760251839153,-1336.55515468,0.00024152,2]
[390974221,1760251839162,-571.11934018,0.00024173,2]
[390974222,1760251839172,-500.0,0.00024173,2]
[390974223,1760251839182,-503.78777992,0.00024173,2]
[390974224,1760251839192,-500.0,0.00024173,2]
[390974225,1760251839201,-170.595212,0.00024173,2]
[390974226,1760251839211,-500.0,0.00024173,2]
[390974227,1760251839222,-500.0,0.00024321,2]
[390974228,1760251839231,-500.0,0.00024321,2]
[390974229,1760251839241,-512.99096655,0.00024321,2]
[390974230,1760251839250,-1368.99125704,0.00024337,2]
[390974231,1760251839260,-1623.32224892,0.0002435,2]
[390974232,1760251839270,-999.0,0.00024354,2]
[390974233,1760251839282,-595.770279,0.00024384,2]
[390974234,1760251839291,-189.7609727,0.00024384,2]
[390974235,1760251839299,-306.0,0.00024384,2]
[390974236,1760251839308,-379.4836702,0.00024384,2]
[390974237,1760251839318,-306.0,0.00024384,2]
[390974238,1760251839328,-588.537303,0.00024384,2]
[390974239,1760251839337,-189.7609727,0.00024384,2]
[390974240,1760251839346,-153.0,0.00024384,2]
[390974241,1760251839358,-325.7139684,0.00024384,2]
[390974242,1760251839367,-1176.9479845,0.00024384,2]
[390974243,1760251839377,-588.537303,0.00024384,2]
[390974244,1760251839386,-307.9340188,0.00024384,2]
[390974245,1760251839396,-588.537303,0.00024384,2]
[390974246,1760251839405,-588.537303,0.00024384,2]
[390974247,1760251839415,-588.537303,0.00024384,2]
[390974248,1760251839424,-588.537303,0.00024384,2]
[390974249,1760251839433,-587.3977095,0.00024384,2]
[390974250,1760251839443,-1368.99125704,0.00024453,2]
[390974251,1760251839452,-997.0,0.00024476,2]
[390974252,1760251839462,-501.19283632,0.00024521,2]
[390974253,1760251839472,-1623.32224892,0.00024575,2]
[390974254,1760251839481,-908.9382151,0.00024611,2]
[390974255,1760251839492,-10442.2637981,0.00024611,2]
[390974256,1760251839502,-318.8418089,0.00024611,2]
[390974257,1760251839511,-1970.1688196,0.00024611,2]
[390974258,1760251839521,-1500.0,0.00024657,10]
[390974259,1760251839530,-258.01522698,0.00024664,2]
[390974260,1760251839540,-28657.87693564,0.000247,3]
[390974261,1760251839550,-1567.9519887,0.000247,3]
[390974262,1760251839559,-500.0,0.00024705,2]
[390974263,1760251839569,-158.926823,0.00024712,3]
[390974264,1760251839579,-1000.0,0.00024721,2]
[390974265,1760251839589,-1000.0,0.00024721,2]
[390974266,1760251839598,-158.926823,0.00024725,3]
[390974267,1760251839609,-158.926823,0.00024738,3]
[390974268,1760251839619,-160.166806,0.00024738,3]
[390974269,1760251839628,-158.926823,0.0002475,3]
[390974270,1760251839638,-160.166806,0.0002475,3]
[390974271,1760251839648,-500.0,0.00024773,2]
[390974272,1760251839657,-500.86341301,0.00024773,2]
[390974273,1760251839667,-378.6786,0.00024776,2]
[390974274,1760251839676,-200.98733254,0.00024799,2]
[390974275,1760251839686,-937.76366823,0.00024799,2]
[390974276,1760251839695,-3747.30361825,0.00024799,2]
[390974277,1760251839704,-169806.1769269,0.000248,2]
[390974278,1760251839717,-79560.94497103,0.000248,2]
[390974279,1760251839728,-59750.0,0.000248,2]
[390974619,1760251850491,151.0,0.00027397,120]
[390974621,1760251889838,452.3,0.0002739,120]
[390974765,1760252847126,-5000.0,0.00022311,2]
[390974766,1760252847146,-178.008672,0.00022995,2]
[390974767,1760252847164,-500.0,0.00023586,2]
[390974768,1760252847183,-204.7099728,0.00023595,2]
[390974769,1760252847201,-512.99096655,0.00023673,2]
[390974770,1760252847219,-500.0,0.00023673,2]
[390974771,1760252847238,-1060.38488575,0.00023685,2]
[390974776,1760252999949,9851.37159175,0.00021788,2]
[390974777,1760253002422,-148.62840825,0.00021788,2]
[390974778,1760253018314,9702.7531835,0.00021788,2]
[390974783,1760253020561,-297.2468165,0.00021788,2]
[390974804,1760253031488,9405.516367,0.00021788,2]
[390974837,1760253032520,-594.483633,0.00021788,2]
[390974838,1760253032626,-500.0,0.00023586,2]
[390974839,1760253032638,-170.3542991,0.00023586,2]
[390974840,1760253032651,-219.66841954,0.00023673,2]
[390974850,1760253038388,-280.33158046,0.00023673,2]
[390974851,1760253038400,-48.05368804,0.00023684,5]
[390974855,1760253038528,-951.94631196,0.00023684,5]
[390974856,1760253038540,-1138.51793227,0.00023685,2]
[390974857,1760253038551,-710.72,0.00023689,10]
[390974858,1760253038561,-1355.3,0.00023689,10]
[390974859,1760253038572,-300.0,0.00023696,2]
[390974860,1760253038583,-500.0,0.00023697,2]
[390974861,1760253038593,-500.0,0.00023697,2]
[390974862,1760253038605,-500.0,0.00023697,2]
[390974863,1760253038616,-500.0,0.00023697,2]
[390974864,1760253038631,-500.0,0.00023697,2]
[390974865,1760253038643,-200.0,0.00023697,2]
[390974866,1760253038653,-500.0,0.00023697,2]
[390974867,1760253038663,-349.14356947,0.00023697,2]
[390974868,1760253038675,-500.0,0.00023697,2]
[390974869,1760253038685,-588.93,0.00023697,2]
[390974870,1760253038696,-481.71365748,0.00023697,2]
[390974871,1760253038707,-500.0,0.00023697,2]
[390974872,1760253038890,-477.73133279,0.00023697,2]
[390974873,1760253038902,-500.0,0.00023697,2]
[390974874,1760253038912,-500.0,0.00023697,2]
[390974875,1760253038921,-199.87482566,0.00023698,2]
[390974876,1760253038930,-352.10271526,0.00023698,2]
[390974877,1760253038940,-509.76719434,0.00023698,2]
[390974878,1760253038951,-505.39857899,0.00023698,2]
[390974879,1760253038960,-500.0,0.00023698,2]
[390974880,1760253038970,-500.0,0.00023698,2]
[390974881,1760253038981,-500.0,0.00023698,2]
[390974882,1760253038990,-500.0,0.00023698,2]
[390974883,1760253039000,-500.0,0.00023698,2]
[390974885,1760253039009,-500.0,0.00023698,2]
[390974886,1760253039018,-500.0,0.00023698,2]
[390974887,1760253039027,-500.0,0.00023698,2]
[390974888,1760253039037,-500.0,0.00023698,2]
[390974889,1760253039046,-500.0,0.00023698,2]
[390974890,1760253039055,-505.97482371,0.00023698,2]
[390974891,1760253039065,-500.0,0.00023698,2]
[390974892,1760253039074,-506.06341283,0.00023698,2]
[390974894,1760253039085,-501.79849032,0.00023698,2]
[390974895,1760253039095,-504.47051583,0.00023698,2]
[390974896,1760253039104,-500.0,0.00023698,2]
[390974897,1760253039113,-500.0,0.00023698,2]
[390974898,1760253039123,-500.78726322,0.00023698,2]
[390974899,1760253039132,-501.29956999,0.00023698,2]
[390974900,1760253039141,-500.0,0.00023698,2]
[390974901,1760253039150,-500.0,0.00023698,2]
[390974902,1760253039160,-500.0,0.00023698,2]
[390974903,1760253039169,-501.75503013,0.00023698,2]
[390974904,1760253039179,-500.0,0.00023698,2]
[390974905,1760253039188,-500.0,0.00023698,2]
[390974906,1760253039199,-500.0,0.00023698,2]
[390974907,1760253039208,-553.59,0.00023698,2]
[390974908,1760253039218,-500.0,0.00023698,2]
[390974909,1760253039228,-500.0,0.00023698,2]
[390974910,1760253039237,-281.44631974,0.00023698,2]
[390974911,1760253039246,-1003.50789963,0.00023698,2]
[390974912,1760253039255,-500.0,0.00023698,2]
[390974913,1760253039265,-501.93308142,0.00023698,2]
[390974914,1760253039274,-500.0,0.00023698,2]
[390974915,1760253039283,-500.0,0.00023698,2]
[390974916,1760253039293,-504.0657496,0.00023698,2]
[390974917,1760253039303,-500.13699108,0.00023698,2]
[390974918,1760253039312,-500.0,0.00023698,2]
[390974919,1760253039321,-500.0,0.00023698,2]
[390974920,1760253039330,-501.02352192,0.00023698,2]
[390974921,1760253039339,-311.52774166,0.00023698,2]
[390974922,1760253039348,-500.0,0.00023698,2]
[390974923,1760253039357,-503.94326095,0.00023698,2]
[390974924,1760253039367,-168.25069175,0.00023698,2]
[390974925,1760253039376,-503.61658818,0.00023698,2]
[390974926,1760253039386,-500.0,0.00023698,2]
[390974927,1760253039396,-495.57486,0.00023698,2]
[390974928,1760253039404,-500.0,0.00023698,2]
[390974929,1760253039414,-500.0,0.00023698,2]
[390974930,1760253039423,-369843.18061671,0.00023699,2]
[390974931,1760253039562,-156.81938329,0.00023699,2]
[390974932,1760253039572,-500.0,0.00023784,2]
[390974933,1760253039581,-227.19111639,0.00023784,2]
[390974988,1760253058469,8811.042734,0.00021788,2]
[390974990,1760253060672,-1188.957266,0.00021788,2]
[390975004,1760253070604,7622.095468,0.00021788,2]
[390975006,1760253072780,-2377.904532,0.00021788,2]
[390975010,1760253081355,10000.0,0.00021788,2]
[390975012,1760253122840,10000.0,0.00021788,2]
[390975015,1760253175641,799.0,0.00027397,120]
[390975023,1760253319835,0.01,0.00021788,2]
[390975024,1760253320851,-152.99,0.00021788,2]
[390975034,1760253759802,39091.0550564,0.00030225,60]
[390975070,1760254047090,-186.0201724,0.0002267,2]
[390975071,1760254047120,-166.94721312,0.0002267,2]
[390975072,1760254047144,-1377.2791542,0.00022751,2]
[390975073,1760254047164,-1000.0,0.00022928,2]
[390975074,1760254047184,-1377.2791542,0.00023071,2]
[390975075,1760254047205,-191.98929509,0.0002327,2]
[390975076,1760254047225,-1377.2791542,0.00023444,2]
[390975077,1760254047245,-571.11934018,0.00023573,2]
[390975078,1760254047265,-150.0,0.0002358,7]
[390975079,1760254047285,-500.0,0.00023586,2]
[390975080,1760254047305,-300.0,0.00023588,2]
[390975081,1760254047325,-1129.42,0.00023589,10]
[390975082,1760254047347,-941.18,0.00023589,10]
[390975083,1760254047369,-246.47190069,0.00023598,2]
[390975084,1760254047389,-999.99999901,0.00023598,3]
[390975085,1760254047409,-1000.0,0.00023598,10]
[390975086,1760254047428,-255.59590223,0.00023598,2]
[390975087,1760254047448,-504.14856226,0.00023598,2]
[390975088,1760254047467,-500.0,0.00023598,2]
[390975089,1760254047486,-400.70769647,0.00023598,2]
[390975090,1760254047505,-500.0,0.00023598,2]
[390975091,1760254047525,-500.0,0.00023598,2]
[390975092,1760254047544,-320.9958514,0.00023598,2]
[390975093,1760254047562,-500.0,0.00023598,2]
[390975094,1760254047583,-370000.0,0.00023599,2]
[390975095,1760254047603,-10445.1335585,0.00023681,2]
[390975096,1760254047623,-1229.0322325,0.00023681,2]
[390975097,1760254047643,-4643.276347,0.00023682,2]
[390975098,1760254047662,-500.0,0.00023697,2]
[390975099,1760254047681,-500.0,0.00023697,2]
[390975100,1760254047701,-500.0,0.00023697,2]
[390975101,1760254047723,-500.0,0.00023697,2]
[390975102,1760254047745,-500.0,0.00023697,2]
[390975103,1760254047764,-500.0,0.00023698,2]
[390975104,1760254047788,-162.8757457,0.000237,2]
[390975105,1760254047808,-306.0,0.000237,2]
[390975106,1760254047829,-588.4106815,0.000237,2]
[390975107,1760254047849,-165.0,0.00023735,3]
[390975108,1760254047868,-205.50379909,0.00023735,3]
[390975109,1760254047887,-162.0,0.00023735,3]
[390975110,1760254047907,-152.15221149,0.00023735,3]
[390975111,1760254047927,-162.0,0.00023735,3]
[390975112,1760254047950,-162.0,0.00023735,3]
[390975113,1760254047969,-166.0,0.00023735,3]
[390975114,1760254047988,-166.10239653,0.00023735,3]
[390975115,1760254048007,-165.0,0.00023735,3]
[390975116,1760254048030,-165.0,0.00023735,3]
[390975117,1760254048052,-973.0,0.00023767,2]
[390975118,1760254048072,-297.8851395,0.00023781,2]
[390975119,1760254048091,-189.7226975,0.00023781,2]
[390975120,1760254048110,-193.0909156,0.00023781,2]
[390975121,1760254048131,-297.8851395,0.00023781,2]
[390975122,1760254048151,-303.6754371,0.00023781,2]
[390975123,1760254048171,-162.8757457,0.00023781,2]
[390975124,1760254048190,-297.8851395,0.00023781,2]
[390975125,1760254048210,-189.7226975,0.00023781,2]
[390975126,1760254048230,-166.1777727,0.00023781,2]
[390975127,1760254048250,-162.8757457,0.00023781,2]
[390975128,1760254048269,-306.0,0.00023781,2]